{"text_format":"1","workbook":"xlsx","n_sheets":11,"sheets":["Angaben für Ihr Catering","Zusammenfassung","Coffeebreak","Working Lunch","Apéro","Getränke","Miete Geschirr","VIP Lunch","AGB","Anzeige","Tabelle1"],"not_rendered":{"charts":0,"images":2,"macros":1,"external_links":0,"defined_names":11,"comments":0,"pivot_tables":1},"unopened":[],"bounds":{"document_bytes":16777216,"sheet_cells":100000,"rows_first":2000,"rows_last":500,"rows_between":2000,"halvings":0,"cell_chars":16384,"cell_head_chars":4096},"cells_cut":0,"cells_raw":0,"read":"whole","date_system":"1900"}

{"sheet":"Angaben für Ihr Catering","index":0,"n_rows":34,"n_cols":5,"rows_kept":34,"cut":false,"hidden":false,"merged":[[1,0,1,6],[0,0,0,6],[2,0,2,6],[37,0,37,6],[5,3,5,6],[6,3,6,6],[14,3,14,6],[7,3,7,6],[8,3,8,6],[9,3,9,6],[12,3,12,6],[13,3,13,6],[16,3,16,6],[2,8,2,14],[24,3,24,6],[25,3,25,6],[26,3,26,6],[17,3,17,6],[20,3,20,6],[21,3,21,6],[22,3,22,6],[23,3,23,6]]}
[]
["Catering Hard Rück Cafe"]
["Bestellfristen: 1-50 Personen 2 Tage vor dem Anlass bis 10.00 Uhr / 51-100 Personen 5 Tage vor dem Anlass \nbis 10.00 Uhr / mehr als 100 Personen 10 Tage vor dem Anlass bis 10.00 Uhr."]
[]
["Angaben des Bestellers"]
["Firma"]
["Vorname/Name"]
["Strasse"]
["PLZ / Ort"]
["Telefon / E-Mail"]
[]
["Rechnungsadresse"]
["Firma"]
["Vorname / Name"]
["Kostenstelle"]
["Kostenart"]
["Strasse"]
["PLZ / Ort"]
[]
["Angaben zur Veranstaltung"]
["Veranstaltungs-Raum"]
["Name der Veranstaltung"]
["Anzahl Teilnehmer"]
["Datum und Zeit der Lieferung / Abholung"]
["Ende der Veranstaltung"]
["Bemerkungen"]
[]
[]
[null,null,null,null," "]
[null,false,"Bestellung wird abgeholt"]
[null,null,"Mit Service während der Veranstaltung"]
[null,null,"Einrichten des Raumes gewünscht"]
[]
[null,"Der Besteller/die Bestellerin akzeptiert die Allgemeinen Geschäftsbedingungen von Eldora."]

{"sheet":"Zusammenfassung","index":1,"n_rows":10,"n_cols":3,"rows_kept":10,"cut":false,"hidden":false,"merged":[[1,0,1,4]]}
[]
["Zusammenfassung Ihrer Bestellung"]
[]
[]
["anzeige","x"]
[]
["Bestellung","Bestellung","Totalbetrag"]
["Coffeebreak",10,105]
["Morning Coffeebreak Basic",10,105]
["Gesamttotal",10,105]

{"sheet":"Coffeebreak","index":2,"n_rows":92,"n_cols":10,"rows_kept":92,"cut":false,"hidden":false,"merged":[[2,0,2,7],[23,0,23,7],[36,0,36,7],[0,0,0,6],[1,0,1,7]]}
[]
["Coffeebreak"]
["Morning Coffeebreak Packages"]
[null,null,null,null,"Preis",null,"Einheit","Betrag inkl.  MwSt",null,{"$f":"IF(ISBLANK(A7),\"\",C7)","v":""}]
[]
[10,null,"Morning Coffeebreak Basic",null,10.5,"/","Pers.",{"$f":"A6*E6","v":105}]
[null,null,"ab 5 Personen"]
[null,null,"Auswahl von Buttergipfel, Laugengipfel, Rusticogipfel,"]
[null,null,"Kaffee, Tee, Mineralwasser"]
[]
[null,null,"Morning Coffeebreak Classic",null,13.5,"/","Pers.",{"$f":"A11*E11","v":0}]
[null,null,"ab 5 Personen"]
[null,null,"Auswahl von Buttergipfel, Laugengipfel, Rusticogipfel, "]
[null,null,"Kaffee, Tee, Mineralwasser, Softgetränke, "]
[null,null,"Orangensaft, Früchteschale"]
[]
[null,null,"Morning Coffeebreak Sunrise",null,19.5,"/","Pers.",{"$f":"A17*E17","v":0}]
[null,null,"ab 20 Personen"]
[null,null,"Auswahl von Buttergipfel, Laugengipfel, Rusticogipfel, Kleinbrötli,"]
[null,null,"Kaffee, Tee, Mineralwasser, Softgetränke, Orangensaft, "]
[null,null,"Fruchtschale, Birchermüesli im Glas"]
[null,null,"Kleiner Schinken-Käseteller"]
[]
["Afternoon Coffeebreak Packages"]
[null,null,null,null,"Preis",null,"Einheit","Betrag inkl.  MwSt"]
[]
[null,null,"Afternoon Coffeebreak Sunset",null,18.5,"/","Pers.",{"$f":"A27*E27","v":0}]
[null,null,"ab 10 Personen"]
[null,null,"Kaffee, Tee, Mineralwasser, Softgetränke, "]
[null,null,"Orangensaft, Mini Patisserie assortiert"]
[]
[null,null,"Coffeebreak Light",null,9,"/","Pers.",{"$f":"A32*E32","v":0}]
[null,null,"ab 5 Personen"]
[null,null,"Kaffee, Tee, Mineralwasser, Softgetränke,"]
[null,null,"Orangensaft"]
[]
["Coffeebreak à la Carte"]
[]
[null,null,"Frühstücksgebäck",null,"Preis",null,"Einheit","Betrag inkl.  MwSt"]
[]
[null,null,"Buttergipfel",null,1.4,"/","Stk.",{"$f":"A41*E41","v":0}]
[null,null,"Laugengipfel",null,1.4,"/","Stk.",0]
[null,null,"Verschiedene Kleinbrötli (5 Sorten gemischt)",null,1.5,"/","Stk.",0]
[]
[null,null,"Zum Frühstücksgebäck"]
[]
[null,null,"Butter 10g",null,0.4,"/","Stk.",{"$f":"A47*E47","v":0}]
[null,null,"Konfitüre 25g",null,0.4,"/","Stk.",0]
[null,null,"Honig 25g",null,0.4,"/","Stk.",0]
[]
[null,null,"Muffins & Cakes"]
[]
[null,null,"Chocolate Muffin",null,2.9,"/","Stk.",{"$f":"A53*E53","v":0}]
[null,null,"Berry Muffin",null,2.9,"/","Stk.",0]
[null,null,"Schokolade-Cake",null,2.9,"/","Stk.",0]
[null,null,"Marmor-Cake",null,2.9,"/","Stk.",0]
[null,null,"Zitronen-Cake",null,2.9,"/","Stk.",0]
[]
[null,null,"Süsses"]
[]
[null,null,"Nussgipfel",null,2.9,"/","Stk.",{"$f":"A61*E61","v":0}]
[null,null,"Mandelgipfel",null,2.9,"/","Stk.",0]
[null,null,"Cailler Schoggigipfel",null,2.6,"/","Stk.",0]
[null,null,"Vanillecrèmegipfel",null,2.9,"/","Stk.",0]
[null,null,"Trockenstückli, assortiert ",null,3.5,"/","Stk.",{"$f":"A65*E65","v":0}]
[]
[null,null,"Sweet Dreams - Mindestbestellmenge: 10 Stück pro Sorte"]
[]
[null,null,"Mini Patisserie assortiert",null,2,"/","Stk.",{"$f":"A69*E69","v":0}]
[null,null,"Fruchtsalat im Glas",null,2.5,"/","Stk.",0]
[]
[null,null,"Müesli & Früchte",null,"Preis",null,"Einheit","Betrag inkl.  MwSt"]
[]
[null,null,"Swiss Classic Birchermüesli im Glas",null,3.5,"/","Stk.",{"$f":"A74*E74","v":0}]
[null,null,"Fruchtsalat im Glas",null,3.5,"/","Stk.",{"$f":"A75*E75","v":0}]
[null,null,"Saisonale Früchte geschnitten im Glas",null,3.5,"/","Stk.",0]
[null,null,"Früchte-Korb für 5 Personen",null,8,"/","Stk.",0]
[null,null,"Früchte-Korb für 15 Personen",null,20,"/","Stk.",0]
[null,null,"Früchte-Korb für 25 Personen",null,30,"/","Stk.",0]
[]
[null,null,"Mini-Sandwiches - Mindestbestellmenge: 4 Stück pro Sorte"]
[]
[null,null,"Mini-Pastorello mit Salami",null,3.5,"/","Stk.",{"$f":"A83*E83","v":0}]
[null,null,"Mini-Castellino mit Käse",null,3.5,"/","Stk.",0]
[null,null,"Mini-Semmeli mit Schinken",null,3.5,"/","Stk.",0]
[null,null,"Mini-Nussbrötli mit Brie",null,3.5,"/","Stk.",0]
[null,null,"Mini-Teebrötli mit Ei",null,3.5,"/","Stk.",0]
[null,null,"Mini-Ciabatta mit Tomaten-Mozzarella",null,3.5,"/","Stk.",0]
[null,null,"Mini-Laugenbrötli mit Lachs",null,4,"/","Stk.",0]
[null,null,"Mini-Laugenbrötli mit Rohschinken",null,4,"/","Stk.",0]
[null,null,"Mini-Laugenbrötli mit Mostbröckli",null,4,"/","Stk.",0]
[null,null,"Mini-Graham mit Thonfüllung",null,4,"/","Stk.",0]

{"sheet":"Working Lunch","index":3,"n_rows":52,"n_cols":8,"rows_kept":52,"cut":false,"hidden":false,"merged":[[0,0,0,6],[1,0,1,7],[45,0,45,7],[29,0,29,7],[2,0,2,7]]}
[]
["Working Lunch"]
["Working Lunch Platten"]
[]
[null,null,null,null,"Preis",null,"Einheit","Betrag inkl.  MwSt"]
[]
[null,null,"Käseplatte für 4 Personen",null,56.5,"/","Person",{"$f":"A7*E7","v":0}]
[null,null,"150g pro Person"]
[]
[null,null,"Tête de Moine, Gruyère, Tilsiter, Brie, Geissenfrischkäse,"]
[null,null,"Weintrauben, Nüsse, Trockenfrüchte,"]
[null,null,"dazu servieren wir knuspriges Huusbrot und Baguette"]
[]
[null,null,"Älplerplatte für 4 Personen",null,56.5,"/","Person",{"$f":"A14*E14","v":0}]
[null,null,"150g pro Person"]
[]
[null,null,"Bündner Rohschinken, Coppa, Salami, Bündner Bergkäse,"]
[null,null,"Oliven, Gurken, Maiskölbchen, Cherrytomaten,"]
[null,null,"dazu servieren wir knuspriges Huusbrot und Baguette"]
[]
[]
[null,null,"Fleischplatte für 4 Personen",null,56.5,"/","Person",{"$f":"A22*E22","v":0}]
[null,null,"100g pro Person"]
[]
[null,null,"Bauern-Schinken, Salami, diverse Aufschnitte,"]
[null,null,"Pastete, Fleischkäse, Essiggemüse, Cherrytomaten,"]
[null,null,"dazu servieren wir knuspriges Huusbrot und Baguette"]
[]
[]
["Working Lunch à la carte"]
[]
[null,null,null,null,null,null,null,"Betrag inkl.  MwSt"]
[null,null,"Mini Sandwiches"]
[null,null,"Mindestbestellmenge: 4 Stück pro Sorte"]
[]
[null,null,"Mini-Pastorello mit Salami",null,3.5,"/","Stk.",{"$f":"A36*E36","v":0}]
[null,null,"Mini-Castellino mit Käse",null,3.5,"/","Stk.",0]
[null,null,"Mini-Semmeli mit Schinken",null,3.5,"/","Stk.",0]
[null,null,"Mini-Nussbrötli mit Brie",null,3.5,"/","Stk.",0]
[null,null,"Mini-Teebrötli mit Ei",null,3.5,"/","Stk.",0]
[null,null,"Mini-Ciabatta mit Tomaten-Mozzarella",null,3.5,"/","Stk.",0]
[null,null,"Mini-Laugenbrötli mit Lachs",null,4,"/","Stk.",0]
[null,null,"Mini-Laugenbrötli mit Rohschinken",null,4,"/","Stk.",0]
[null,null,"Mini-Laugenbrötli mit Mostbröckli",null,4,"/","Stk."]
[null,null,"Mini-Graham mit Thonfüllung",null,4,"/","Stk.",0]
[]
[null,null,"Dessert"]
[null,null,"Mindestbestellmenge: 4 Stück pro Sorte"]
[]
[null,null,"Mini Patisserie, assortiert *",null,2.7,"/","Stk.",{"$f":"A50*E50","v":0}]
[null,null,"Trockenstückli, assortiert",null,3.5,"/","Stk.",0]
[null,null,"Fruchtsalat im Glas",null,3.5,"/","Stk.",0]

{"sheet":"Apéro","index":4,"n_rows":153,"n_cols":11,"rows_kept":153,"cut":false,"hidden":false,"merged":[[87,0,87,7],[1,0,1,7],[30,0,30,7],[2,0,2,7],[31,0,31,7],[86,0,86,7]]}
[]
["Apéro"]
["Apéro Platten"]
[]
[null,null,null,null,"Preis",null,"Einheit","Betrag inkl.  MwSt"]
[]
[null,null,"Käseplatte",null,56.5,"/","Person",{"$f":"A7*E7","v":0}]
[null,null,"für 4 Personen"]
[]
[null,null,"Tête de Moine, Gruyère, Tilsiter, Brie, Geissenfrischkäse,"]
[null,null,"Weintrauben, Nüsse, Trockenfrüchte,"]
[null,null,"dazu servieren wir knuspriges Huusbrot und Baguette"]
[null,null,"(ca. 150g pro Person)"]
[]
[null,null,"Älplerplatte",null,56.5,"/","Person",{"$f":"A15*E15","v":0}]
[null,null,"für 4 Personen"]
[]
[null,null,"Bündner Rohschinken, Coppa, Salami, Bündner Bergkäse,"]
[null,null,"Oliven, Gurken, Maiskölbchen, Cherrytomaten,"]
[null,null,"dazu servieren wir knuspriges Huusbrot und Baguette"]
[null,null,"(ca. 150g pro Person)",null,null,null,null,null,null," "]
[]
[null,null,"Fleischplatte",null,56.5,"/","Person",{"$f":"A23*E23","v":0}]
[null,null,"für 4 Personen"]
[]
[null,null,"Bauern-Schinken, Salami, diverse Aufschnitte,"]
[null,null,"Pastete, Fleischkäse, Essiggemüse, Cherrytomaten,"]
[null,null,"dazu servieren wir knuspriges Huusbrot und Baguette"]
[null,null,"(ca. 100g pro Person)"]
[]
[]
["Apéro Packages"]
[]
[null,null,null,null,"Preis",null,"Einheit","Betrag inkl.  MwSt"]
[null,null,"Small Apéro",null,8.5,"/","Person",{"$f":"A38*E35","v":0}]
[null,null,"Mindestbestellmenge: 6 Personen"]
[]
[null,null,"Nüssli, Chips, Blätterteigstangen "]
[]
[null,null,"Medium Apéro",null,12.8,"/","Person",{"$f":"A40*E40","v":0}]
[null,null,"Mindestbestellmenge: 10 Personen "]
[]
[null,null,"Party Chäschüechli"]
[null,null,"Party Schinkengipfeli"]
[null,null,"Party Minipizza"]
[null,null,"Party-Frühlingsrolle"]
[null,null,"Blätterteiggebäck"]
[null,null,"je 1 Stück pro Person"]
[]
[null,null,"Italia Apéro",null,24,"/","Person",{"$f":"A50*E50","v":0}]
[null,null,"Mindestbestellmenge: 10 Personen "]
[]
[null,null,"Grissini mit Rohschinken"]
[null,null,"Party Minipizza"]
[null,null,"Marinierte Oliven und Parmesanmöckli"]
[null,null,"Tomaten-Mozzarella Spiessli mit Balsamico"]
[null,null,"Bruschetta mit frischen Tomaten, Basilikum und Olivenöl"]
[null,null,"Rinds Meat Balls mit BBQ-Dip"]
[null,null,"Roastbeefroulade mit Frischkäse gefüllt"]
[null,null,"je 1 Stück pro Person"]
[]
[null,null,"Asia Apéro",null,24,"/","Person",{"$f":"A62*E62","v":0}]
[]
[null,null,"Mindestbestellmenge: 10 Personen"]
[null,null,"Curry Cashew Nüsse"]
[null,null,"Mini-Frühlingsrolle mit Sweet Chilisauce"]
[null,null,"Mini-Gemüse-Samosas mit Curry-Joghurt-Dip"]
[null,null,"Glasnudelsalat mit Koreander"]
[null,null,"Tandoori Pouletspiessli mit Erdnuss-Kokos-Sauce"]
[null,null,"Crevette auf Mango-Chili-Salat"]
[null,null,"Gemüsesticks mit Dip"]
[]
[null,null,"Apéro riche ",null,38.5,"/","Person",{"$f":"A73*E73","v":0}]
[null,null,"Mindestbestellmenge: 30 Personen "]
[null,null,"Mini-Sandwiches assortiert, 4 Sorten"]
[null,null,"Bruschetta mit frischen Tomaten, Basilikum und Olivenöl"]
[null,null,"Party Schinkengipfeli"]
[null,null,"Saisonale Suppe im Glas"]
[null,null,"Gemüse-Samosas mit Curry-Joghurt-Dip"]
[null,null,"Glasnudelsalat mit Koreander"]
[null,null,"Lachstatar mit Dill-Senfsauce"]
[null,null,"Rindstatar auf Toast"]
[null,null,"Rinds Meat Balls mit BBQ-Dip"]
[null,null,"Mini Patisserie, assortiert "]
[null,null,"Fruchtsalat im Glas"]
[null,null,"Mini-Crèmeschnitte Schokolade und Vanille"]
[]
["Apéro à la Carte"]
[]
[]
[null,null,"Mini-Sandwiches"]
[null,null,"Mindestbestellmenge: 4 Stück pro Sorte",null,"Preis",null,"Einheit","Betrag inkl.  MwSt"]
[]
[null,null,"Mini-Pastorello mit Salami",null,3.5,"/","Stk.",{"$f":"A94*E94","v":0}]
[null,null,"Mini-Castellino mit Käse",null,3.5,"/","Stk.",0]
[null,null,"Mini-Semmeli mit Schinken",null,3.5,"/","Stk.",0]
[null,null,"Mini-Nussbrötli mit Brie",null,3.5,"/","Stk.",0]
[null,null,"Mini-Teebrötli mit Ei",null,3.5,"/","Stk.",0]
[null,null,"Mini-Ciabatta mit Tomaten-Mozzarella",null,3.5,"/","Stk.",0]
[null,null,"Mini-Laugenbrötli mit Lachs",null,4,"/","Stk.",0]
[null,null,"Mini-Laugenbrötli mit Rohschinken",null,4,"/","Stk.",0]
[null,null,"Mini-Laugenbrötli mit Mostbröckli",null,4,"/","Stk.",0]
[null,null,"Mini-Graham mit Thonfüllung",null,4,"/","Stk.",0]
[]
[null,null,"Fingerfood kalt vegetarisch"]
[null,null,"Mindestbestellmenge: 6 Stück pro Sorte"]
[]
[null,null,"Bruschetta mit frischen Tomaten, Basilikum und Olivenöl",null,3,"/","Stk.",{"$f":"A108*E108","v":0}]
[null,null,"Tomaten-Mozzarella-Spiess",null,3,"/","Stk.",0]
[null,null,"Marinierte Oliven und Parmesanmöckli",null,6,"/","Stk.",0]
[null,null,"Gemüsesticks mit 2 Dips",null,3,"/","Stk.",0]
[]
[null,null,"Fingerfood kalt "]
[null,null,"Mindestbestellmenge: 6 Stück pro Sorte"]
[]
[null,null,"Crevette auf Mango-Chili-Salat",null,3.5,"/","Stk.",{"$f":"A116*E116","v":0}]
[null,null,"Glasnudelsalat mit Koreander",null,3.5,"/","Stk.",0]
[null,null,"Rindstatar auf Toast",null,4,"/","Stk.",0]
[null,null,"Lachstatar mit Dill-Senfsauce",null,4,"/","Stk.",0]
[null,null,"Roastbeef-Roulade mit Frischkäse",null,3.5,"/","Stk.",0]
[null,null,"Zwetschgen im Speckmantel",null,2.5,"/","Stk.",0]
[]
[null,null,"Fingerfood warm vegetarisch"]
[null,null,"Mindestbestellmenge: 6 Stück pro Sorte",null,"Preis",null,"Einheit","Betrag inkl.  MwSt"]
[]
[null,null,"Party Chäschüechli",null,2.5,"/","Stk.",{"$f":"A126*E126","v":0}]
[null,null,"Party Minipizza ",null,2.5,"/","Stk.",0]
[null,null,"Party-Frühlingsrolle",null,2.5,"/","Stk.",0]
[null,null,"Gemüse-Samosas mit Curry-Joghurt-Dip",null,2.5,"/","Stk.",0,null,null," "]
[]
[null,null,"Fingerfood warm "]
[null,null,"Mindestbestellmenge: 6 Stück pro Sorte"]
[]
[null,null,"Party Schinkengipfeli",null,2.5,"/","Stk.",{"$f":"A134*E134","v":0}]
[null,null,"Mini Frühlingsrollen",null,2.5,"/","Stk.",0]
[null,null,"Tandoori-Pouletspiessli mit Erdnuss-Kokos-Sauce",null,3.5,"/","Stk.",0]
[null,null,"Rinds Meat Balls mit BBQ-Dip",null,3.5,"/","Stk.",0]
[]
[null,null,"Dessert "]
[null,null,"Mindestbestellmenge: 10 Stück pro Sorte"]
[]
[null,null,"Mini Patisserie, assortiert",null,1.5,"/","Stk.",{"$f":"A142*E142","v":0}]
[null,null,"Trockenstückli, assortiert",null,2.5,"/","Stk.",0]
[null,null,"Fruchtsalat im Glas",null,2,"/","Stk.",0]
[]
[null,null,"Canapé 9x9 cm, diagonal geschnitten"]
[]
[null,null,"Canapé Spargel",null,6.5,"/","Stk.",{"$f":"A148*E148","v":0}]
[null,null,"Canapé Eier",null,6.5,"/","Stk.",0]
[null,null,"Canapé Schinken",null,6.5,"/","Stk.",0]
[null,null,"Canapé Salami",null,6.5,"/","Stk.",0]
[null,null,"Canapé Bündnerfleisch",null,6.8,"/","Stk.",0]
[null,null,"Canapé Lachs",null,6.8,"/","Stk.",0]

{"sheet":"Getränke","index":5,"n_rows":42,"n_cols":8,"rows_kept":42,"cut":false,"hidden":false,"merged":[[41,0,41,7],[0,0,0,6],[32,0,32,7],[1,0,1,7],[33,0,33,7],[2,0,2,7]]}
[]
["Getränke"]
["Soft Getränke"]
[]
[null,null,null,null,"Preis",null,"Einheit","Betrag inkl.  MwSt"]
[null,null,"Kaffee & Tee"]
[]
[null,null,"Nespresso Espresso",null,2,"/","Stk.",{"$f":"A8*E8","v":0}]
[null,null,"Nespresso Kaffee Crème",null,2,"/","Stk.",{"$f":"A9*E9","v":0}]
[null,null,"Tee assortiert",null,2,"/","Stk.",0]
[]
[null,null,"Kalte Getränke 5dl PET"]
[]
[null,null,"Valser mit Kohlensäure",null,2.8,"/","Stk.",{"$f":"A14*E14","v":0}]
[null,null,"Valser ohne Kohlensäure",null,2.8,"/","Stk.",0]
[null,null,"Coca-Cola",null,2.8,"/","Stk.",0]
[null,null,"Coca-Cola Zero",null,2.8,"/","Stk.",0]
[null,null,"Nestea Lemon",null,2.8,"/","Stk.",0]
[null,null,"Rivella Rot",null,2.8,"/","Stk.",0]
[null,null,"Rivella Blau",null,2.8,"/","Stk.",0]
[null,null,"Red Bull",null,3.5,"/","Stk.",0]
[]
[null,null,"Kalte Getränke 1 Liter"]
[]
[null,null,"Valser mit Kohlensäure",null,4.5,"/","Fl.",{"$f":"A25*E25","v":0}]
[null,null,"Valser ohne Kohlensäure",null,4.5,"/","Fl.",0]
[]
[null,null,"Juices"]
[]
[null,null,"Orangensaft, 1L",null,6.5,"/","Stk.",{"$f":"A30*E30","v":0}]
[null,null,"Orangensaft frisch gepresst, 1 L",null,15,"/","Stk.",0]
[]
[]
["Alkoholische Getränke"]
[]
[null,null,null,null,"Preis",null,"Einheit","Betrag inkl.  MwSt"]
[null,null,"Schweizer Bier"]
[]
[null,null,"S`Bier",null,4.5,"/","Fl.",{"$f":"A39*E39","v":0}]
[null,null,"Feldschlösschen mit und ohne Alkohol",null,3.5,"/","Fl.",0]
[]
["Weisswein, Rotwein und Schaumwein sind erhältlich ab CHF 25.00. Gerne unterbreiten wir Ihnen weitere Weinvorschläge oder organisieren für Sie Ihren Lieblingswein. Nehmen Sie mit uns Kontakt auf. "]

{"sheet":"Miete Geschirr","index":6,"n_rows":53,"n_cols":8,"rows_kept":53,"cut":false,"hidden":false,"merged":[[63,0,63,6],[0,0,0,6],[62,0,62,6],[2,0,2,7],[5,0,8,7],[1,0,1,7]]}
[]
["Miete Geschirr"]
["Miete Geschirr"]
[]
[]
["Wir verrechnen keine Geschirrmiete, wenn Sie bei uns einen Anlass buchen. Im Preis inbegriffen ist das Abwaschen und Reinigen der gemieteten Gegen-stände. Bei Zulieferung gelten die üblichen Lieferkosten gemäss AGB. Fehlendes oder beschädigtes Material wird verrechnet gemäss Ersatzkostenreglement in den AGB."]
[]
[]
[]
[]
[null,null,"Geschirr",null,"Preis",null,"Einheit","Betrag inkl.  MwSt"]
[]
[null,null,"Teller, 28cm",null,2,"/","Stk.",{"$f":"A13*E13","v":0}]
[null,null,"Teller, 24cm",null,2,"/","Stk.",{"$f":"A14*E14","v":0}]
[null,null,"Teller, 18cm",null,1.5,"/","Stk.",0]
[null,null,"Salat-Teller klein",null,1,"/","Stk.",0]
[null,null,"Suppenschale",null,1,"/","Stk.",0]
[null,null,"Kaffeetasse mit Unterteller",null,2,"/","Stk.",0]
[null,null,"Espressotasse mit Unterteller",null,2,"/","Stk.",0]
[]
[null,null,"Besteck"]
[]
[null,null,"Messer",null,1,"/","Person",{"$f":"A23*E23","v":0}]
[null,null,"Gabel",null,1,"/","Person",0]
[null,null,"Suppenlöffel",null,1,"/","Person",0]
[null,null,"Kaffeelöffel",null,1,"/","Person",0]
[null,null,"Schöpfkelle",null,2,"/","Person",0]
[null,null,"Zange",null,2,"/","Person",0]
[]
[null,null,"Gläser"]
[]
[null,null,"Champagnerglas",null,1,"/","Stk.",{"$f":"A32*E32","v":0}]
[null,null,"Rotweinglas",null,1,"/","Stk.",0]
[null,null,"Weissweinglas",null,1,"/","Stk.",0]
[null,null,"Wasserglas, 2.5dl",null,1,"/","Stk.",0]
[]
[null,null,"Zubehör"]
[]
[null,null,"Korkenzieher",null,15,"/","Stk.",{"$f":"A39*E39","v":0}]
[null,null,"Grosses Messer",null,25,"/","Stk.",0]
[null,null,"Schale",null,12,"/","Stk.",0]
[null,null,"Platte",null,14.5,"/","Stk.",0]
[null,null,"Korb",null,8,"/","Stk.",0]
[null,null,"Thermoskanne",null,15,"/","Stk.",0]
[null,null,"Tischtuch Papier",null,3.5,"/","Mt.",0]
[null,null,"Tischtuch Stoff",null,5,"/","Mt.",0]
[]
[]
[null,null,"Take-Away"]
[]
[null,null,"Besteckset",null,1.5,"/","Stk.",{"$f":"A51*E51","v":0}]
[null,null,"Pappteller",null,1.2,"/","Stk.",0]
[null,null,"Becher",null,0.9,"/","Stk.",0]

{"sheet":"VIP Lunch","index":7,"n_rows":44,"n_cols":5,"rows_kept":44,"cut":false,"hidden":false,"merged":[[0,0,0,7],[1,0,1,7],[11,2,11,7],[16,2,16,7],[44,3,44,7],[33,3,33,7],[35,3,35,7],[42,3,42,7],[43,3,43,7],[36,3,36,7],[37,3,37,7],[38,3,38,7],[39,3,39,7],[26,3,26,7],[29,3,29,7],[30,3,30,7],[31,3,31,7],[32,3,32,7],[25,3,25,7],[21,3,21,7],[22,3,22,7],[23,3,23,7],[24,3,24,7]]}
[]
["VIP LUNCH"]
[]
[null,null,"Wir bieten bediente VIP Lunches ab 4 Personen an. Gerne stellen wir Ihnen ein individuelles"]
[null,null,"Angebot zusammen, ausgerichtet auf Ihren speziellen Anlass, und auch mit Augenmerk auf"]
[null,null,"saisonale Produkte."]
[]
[null,null,"Bitte füllen Sie die nachfolgenden Angaben zu Ihrer Veranstaltung aus, damit wir Ihnen"]
[null,null,"eine massgeschneiderte Offerte zustellen können."]
[]
[null,null,"Eldora AG"]
[null,null,"Mitarbeiterrestaurant New Re"]
[null,null,"New Reinsurance Company Ltd."]
[null,null,"Zollikerstrasse 226"]
[null,null,"8008 Zürich"]
[]
[null,null,"Betriebsleiter: Michael Graf"]
[null,null,"T +41 44 811 00 31"]
[null,null,"9427-grt@eldora.ch"]
[]
[]
[null,null,"Vorname"]
[null,null,"Nachname"]
[null,null,"Strasse"]
[null,null,"Postleitzahl / Stadt"]
[null,null,"Kostenstelle"]
[null,null,"Telefonnummer"]
[null,null,"E-Mail"]
[]
[null,null,"Veranstaltungs-Raum"]
[null,null,"Name der Veranstaltung"]
[null,null,"Anzahl Personen"]
[null,null,"Datum/Zeit Veranstaltung"]
[null,null,"Ende der Veranstaltung"]
[]
[null,null,"Anzahl Gänge","     Vorspeise"]
[null,null,"gewünschtes bitte","     Salat"]
[null,null,"ankreuzen","     Suppe"]
[null,null,null,"     Hauptgang"]
[null,null,null,"     Dessert"]
[null,null,"Vegetarische Optionen","     Ja, erwünscht                   ","         Nein"]
[]
[null,null,"Weitere Wünsche"]
[null,null,"und Bemerkungen"]

{"sheet":"AGB","index":8,"n_rows":2,"n_cols":1,"rows_kept":2,"cut":false,"hidden":false,"merged":[[0,0,0,7],[1,0,1,7],[64,0,64,7],[65,0,65,7]]}
[]
["Allgemeine Geschäftsbedingungen"]

{"sheet":"Anzeige","index":9,"n_rows":146,"n_cols":6,"rows_kept":146,"cut":false,"hidden":true,"merged":[]}
["Kategorie","Artikel","Anzahl","Stückpreis","Total","anzeige"]
[{"$f":"Coffeebreak!$A$2","v":"Coffeebreak"},{"$f":"Coffeebreak!C6","v":"Morning Coffeebreak Basic"},{"$f":"INDEX(Coffeebreak!$A$6:$A$23,MATCH(Anzeige!B2,Coffeebreak!$C$6:$C$22,0))","v":10},{"$f":"Coffeebreak!E6","v":10.5},{"$f":"D2*C2","v":105},{"$f":"IF(C2=0,\"\",\"x\")","v":"x"}]
[{"$f":"Coffeebreak!$A$2","v":"Coffeebreak"},{"$f":"Coffeebreak!C11","v":"Morning Coffeebreak Classic"},{"$f":"INDEX(Coffeebreak!$A$6:$A$23,MATCH(Anzeige!B3,Coffeebreak!$C$6:$C$22,0))","v":0},{"$f":"Coffeebreak!E11","v":13.5},{"$f":"D3*C3","v":0},{"$f":"IF(C3=0,\"\",\"x\")","v":""}]
[{"$f":"Coffeebreak!$A$2","v":"Coffeebreak"},{"$f":"Coffeebreak!C17","v":"Morning Coffeebreak Sunrise"},{"$f":"INDEX(Coffeebreak!$A$6:$A$23,MATCH(Anzeige!B4,Coffeebreak!$C$6:$C$22,0))","v":0},{"$f":"Coffeebreak!E17","v":19.5},0,""]
[{"$f":"Coffeebreak!$A$2","v":"Coffeebreak"},{"$f":"Coffeebreak!C27","v":"Afternoon Coffeebreak Sunset"},{"$f":"INDEX(Coffeebreak!A27:A35,MATCH(Anzeige!B5,Coffeebreak!C27:C35,0))","v":0},{"$f":"Coffeebreak!E27","v":18.5},0,""]
[{"$f":"Coffeebreak!$A$2","v":"Coffeebreak"},{"$f":"Coffeebreak!C32","v":"Coffeebreak Light"},{"$f":"INDEX(Coffeebreak!A29:A36,MATCH(Anzeige!B6,Coffeebreak!C29:C37,0))","v":0},{"$f":"Coffeebreak!E32","v":9},0,""]
[{"$f":"Coffeebreak!$A$2","v":"Coffeebreak"},{"$f":"Coffeebreak!C41","v":"Buttergipfel"},{"$f":"INDEX(Coffeebreak!$A$41:$A$74,MATCH(Anzeige!B7,Coffeebreak!$C$41:$C$74,0))","v":0},{"$f":"Coffeebreak!E41","v":1.4},0,""]
[{"$f":"Coffeebreak!$A$2","v":"Coffeebreak"},{"$f":"Coffeebreak!C42","v":"Laugengipfel"},{"$f":"INDEX(Coffeebreak!$A$41:$A$74,MATCH(Anzeige!B8,Coffeebreak!$C$41:$C$74,0))","v":0},{"$f":"Coffeebreak!E42","v":1.4},0,""]
[{"$f":"Coffeebreak!$A$2","v":"Coffeebreak"},{"$f":"Coffeebreak!C43","v":"Verschiedene Kleinbrötli (5 Sorten gemischt)"},{"$f":"INDEX(Coffeebreak!$A$41:$A$74,MATCH(Anzeige!B9,Coffeebreak!$C$41:$C$74,0))","v":0},{"$f":"Coffeebreak!E43","v":1.5},0,""]
[{"$f":"Coffeebreak!$A$2","v":"Coffeebreak"},{"$f":"Coffeebreak!C47","v":"Butter 10g"},{"$f":"INDEX(Coffeebreak!$A$41:$A$74,MATCH(Anzeige!B10,Coffeebreak!$C$41:$C$74,0))","v":0},{"$f":"Coffeebreak!E47","v":0.4},0,""]
[{"$f":"Coffeebreak!$A$2","v":"Coffeebreak"},{"$f":"Coffeebreak!C48","v":"Konfitüre 25g"},{"$f":"INDEX(Coffeebreak!$A$41:$A$74,MATCH(Anzeige!B11,Coffeebreak!$C$41:$C$74,0))","v":0},{"$f":"Coffeebreak!E48","v":0.4},0,""]
[{"$f":"Coffeebreak!$A$2","v":"Coffeebreak"},{"$f":"Coffeebreak!C49","v":"Honig 25g"},{"$f":"INDEX(Coffeebreak!$A$41:$A$74,MATCH(Anzeige!B12,Coffeebreak!$C$41:$C$74,0))","v":0},{"$f":"Coffeebreak!E49","v":0.4},0,""]
[{"$f":"Coffeebreak!$A$2","v":"Coffeebreak"},{"$f":"Coffeebreak!C53","v":"Chocolate Muffin"},{"$f":"INDEX(Coffeebreak!$A$41:$A$74,MATCH(Anzeige!B13,Coffeebreak!$C$41:$C$74,0))","v":0},{"$f":"Coffeebreak!E53","v":2.9},0,""]
[{"$f":"Coffeebreak!$A$2","v":"Coffeebreak"},{"$f":"Coffeebreak!C54","v":"Berry Muffin"},{"$f":"INDEX(Coffeebreak!$A$41:$A$74,MATCH(Anzeige!B14,Coffeebreak!$C$41:$C$74,0))","v":0},{"$f":"Coffeebreak!E54","v":2.9},0,""]
[{"$f":"Coffeebreak!$A$2","v":"Coffeebreak"},{"$f":"Coffeebreak!C55","v":"Schokolade-Cake"},{"$f":"INDEX(Coffeebreak!$A$41:$A$74,MATCH(Anzeige!B15,Coffeebreak!$C$41:$C$74,0))","v":0},{"$f":"Coffeebreak!E55","v":2.9},0,""]
[{"$f":"Coffeebreak!$A$2","v":"Coffeebreak"},{"$f":"Coffeebreak!C56","v":"Marmor-Cake"},{"$f":"INDEX(Coffeebreak!$A$41:$A$74,MATCH(Anzeige!B16,Coffeebreak!$C$41:$C$74,0))","v":0},{"$f":"Coffeebreak!E56","v":2.9},0,""]
[{"$f":"Coffeebreak!$A$2","v":"Coffeebreak"},{"$f":"Coffeebreak!C57","v":"Zitronen-Cake"},{"$f":"INDEX(Coffeebreak!$A$41:$A$74,MATCH(Anzeige!B17,Coffeebreak!$C$41:$C$74,0))","v":0},{"$f":"Coffeebreak!E57","v":2.9},0,""]
[{"$f":"Coffeebreak!$A$2","v":"Coffeebreak"},{"$f":"Coffeebreak!C61","v":"Nussgipfel"},{"$f":"INDEX(Coffeebreak!$A$41:$A$74,MATCH(Anzeige!B18,Coffeebreak!$C$41:$C$74,0))","v":0},{"$f":"Coffeebreak!E61","v":2.9},0,""]
[{"$f":"Coffeebreak!$A$2","v":"Coffeebreak"},{"$f":"Coffeebreak!C62","v":"Mandelgipfel"},{"$f":"INDEX(Coffeebreak!$A$41:$A$74,MATCH(Anzeige!B19,Coffeebreak!$C$41:$C$74,0))","v":0},{"$f":"Coffeebreak!E62","v":2.9},0,""]
[{"$f":"Coffeebreak!$A$2","v":"Coffeebreak"},{"$f":"Coffeebreak!C63","v":"Cailler Schoggigipfel"},{"$f":"INDEX(Coffeebreak!$A$41:$A$74,MATCH(Anzeige!B20,Coffeebreak!$C$41:$C$74,0))","v":0},{"$f":"Coffeebreak!E63","v":2.6},0,""]
[{"$f":"Coffeebreak!$A$2","v":"Coffeebreak"},{"$f":"Coffeebreak!C64","v":"Vanillecrèmegipfel"},{"$f":"INDEX(Coffeebreak!$A$41:$A$74,MATCH(Anzeige!B21,Coffeebreak!$C$41:$C$74,0))","v":0},{"$f":"Coffeebreak!E64","v":2.9},0,""]
[{"$f":"Coffeebreak!$A$2","v":"Coffeebreak"},{"$f":"Coffeebreak!C65","v":"Trockenstückli, assortiert "},{"$f":"INDEX(Coffeebreak!$A$41:$A$74,MATCH(Anzeige!B22,Coffeebreak!$C$41:$C$74,0))","v":0},{"$f":"Coffeebreak!E65","v":3.5},0,""]
[{"$f":"Coffeebreak!$A$2","v":"Coffeebreak"},{"$f":"Coffeebreak!C69","v":"Mini Patisserie assortiert"},{"$f":"INDEX(Coffeebreak!$A$41:$A$74,MATCH(Anzeige!B23,Coffeebreak!$C$41:$C$74,0))","v":0},{"$f":"Coffeebreak!E69","v":2},0,""]
[{"$f":"Coffeebreak!$A$2","v":"Coffeebreak"},{"$f":"Coffeebreak!C70","v":"Fruchtsalat im Glas"},{"$f":"INDEX(Coffeebreak!$A$41:$A$74,MATCH(Anzeige!B24,Coffeebreak!$C$41:$C$74,0))","v":0},{"$f":"Coffeebreak!E70","v":2.5},0,""]
[{"$f":"Coffeebreak!$A$2","v":"Coffeebreak"},{"$f":"Coffeebreak!C75","v":"Fruchtsalat im Glas"},{"$f":"INDEX(Coffeebreak!$A$41:$A$74,MATCH(Anzeige!B25,Coffeebreak!$C$41:$C$74,0))","v":0},{"$f":"Coffeebreak!E75","v":3.5},0,""]
[{"$f":"Coffeebreak!$A$2","v":"Coffeebreak"},{"$f":"Coffeebreak!C76","v":"Saisonale Früchte geschnitten im Glas"},{"$f":"INDEX(Coffeebreak!$A$75:$A$94,MATCH(Anzeige!B26,Coffeebreak!$C$75:$C$94,0))","v":0},{"$f":"Coffeebreak!E76","v":3.5},0,""]
[{"$f":"Coffeebreak!$A$2","v":"Coffeebreak"},{"$f":"Coffeebreak!C77","v":"Früchte-Korb für 5 Personen"},{"$f":"INDEX(Coffeebreak!$A$75:$A$94,MATCH(Anzeige!B27,Coffeebreak!$C$75:$C$94,0))","v":0},{"$f":"Coffeebreak!E77","v":8},0,""]
[{"$f":"Coffeebreak!$A$2","v":"Coffeebreak"},{"$f":"Coffeebreak!C78","v":"Früchte-Korb für 15 Personen"},{"$f":"INDEX(Coffeebreak!$A$75:$A$94,MATCH(Anzeige!B28,Coffeebreak!$C$75:$C$94,0))","v":0},{"$f":"Coffeebreak!E78","v":20},0,""]
[{"$f":"Coffeebreak!$A$2","v":"Coffeebreak"},{"$f":"Coffeebreak!C79","v":"Früchte-Korb für 25 Personen"},{"$f":"INDEX(Coffeebreak!$A$75:$A$94,MATCH(Anzeige!B29,Coffeebreak!$C$75:$C$94,0))","v":0},{"$f":"Coffeebreak!E79","v":30},0,""]
[{"$f":"Coffeebreak!$A$2","v":"Coffeebreak"},{"$f":"Coffeebreak!C83","v":"Mini-Pastorello mit Salami"},{"$f":"INDEX(Coffeebreak!$A$75:$A$94,MATCH(Anzeige!B30,Coffeebreak!$C$75:$C$94,0))","v":0},{"$f":"Coffeebreak!E83","v":3.5},0,""]
[{"$f":"Coffeebreak!$A$2","v":"Coffeebreak"},{"$f":"Coffeebreak!C84","v":"Mini-Castellino mit Käse"},{"$f":"INDEX(Coffeebreak!$A$75:$A$94,MATCH(Anzeige!B31,Coffeebreak!$C$75:$C$94,0))","v":0},{"$f":"Coffeebreak!E84","v":3.5},0,""]
[{"$f":"Coffeebreak!$A$2","v":"Coffeebreak"},{"$f":"Coffeebreak!C85","v":"Mini-Semmeli mit Schinken"},{"$f":"INDEX(Coffeebreak!$A$75:$A$94,MATCH(Anzeige!B32,Coffeebreak!$C$75:$C$94,0))","v":0},{"$f":"Coffeebreak!E85","v":3.5},0,""]
[{"$f":"Coffeebreak!$A$2","v":"Coffeebreak"},{"$f":"Coffeebreak!C86","v":"Mini-Nussbrötli mit Brie"},{"$f":"INDEX(Coffeebreak!$A$75:$A$94,MATCH(Anzeige!B33,Coffeebreak!$C$75:$C$94,0))","v":0},{"$f":"Coffeebreak!E86","v":3.5},0,""]
[{"$f":"Coffeebreak!$A$2","v":"Coffeebreak"},{"$f":"Coffeebreak!C87","v":"Mini-Teebrötli mit Ei"},{"$f":"INDEX(Coffeebreak!$A$75:$A$94,MATCH(Anzeige!B34,Coffeebreak!$C$75:$C$94,0))","v":0},{"$f":"Coffeebreak!E87","v":3.5},0,""]
[{"$f":"Coffeebreak!$A$2","v":"Coffeebreak"},{"$f":"Coffeebreak!C88","v":"Mini-Ciabatta mit Tomaten-Mozzarella"},{"$f":"INDEX(Coffeebreak!$A$75:$A$94,MATCH(Anzeige!B35,Coffeebreak!$C$75:$C$94,0))","v":0},{"$f":"Coffeebreak!E88","v":3.5},0,""]
[{"$f":"Coffeebreak!$A$2","v":"Coffeebreak"},{"$f":"Coffeebreak!C89","v":"Mini-Laugenbrötli mit Lachs"},{"$f":"INDEX(Coffeebreak!$A$75:$A$94,MATCH(Anzeige!B36,Coffeebreak!$C$75:$C$94,0))","v":0},{"$f":"Coffeebreak!E89","v":4},0,""]
[{"$f":"Coffeebreak!$A$2","v":"Coffeebreak"},{"$f":"Coffeebreak!C90","v":"Mini-Laugenbrötli mit Rohschinken"},{"$f":"INDEX(Coffeebreak!$A$75:$A$94,MATCH(Anzeige!B37,Coffeebreak!$C$75:$C$94,0))","v":0},{"$f":"Coffeebreak!E90","v":4},0,""]
[{"$f":"Coffeebreak!$A$2","v":"Coffeebreak"},{"$f":"Coffeebreak!C91","v":"Mini-Laugenbrötli mit Mostbröckli"},{"$f":"INDEX(Coffeebreak!$A$75:$A$94,MATCH(Anzeige!B38,Coffeebreak!$C$75:$C$94,0))","v":0},{"$f":"Coffeebreak!E91","v":4},0,""]
[{"$f":"Coffeebreak!$A$2","v":"Coffeebreak"},{"$f":"Coffeebreak!C92","v":"Mini-Graham mit Thonfüllung"},{"$f":"INDEX(Coffeebreak!$A$75:$A$94,MATCH(Anzeige!B39,Coffeebreak!$C$75:$C$94,0))","v":0},{"$f":"Coffeebreak!E92","v":4},0,""]
[{"$f":"'Working Lunch'!$A$2","v":"Working Lunch"},{"$f":"'Working Lunch'!C7","v":"Käseplatte für 4 Personen"},{"$f":"INDEX('Working Lunch'!A7:A27,MATCH(Anzeige!B40,'Working Lunch'!C7:C27,0))","v":0},{"$f":"'Working Lunch'!E7","v":56.5},0,""]
[{"$f":"'Working Lunch'!$A$2","v":"Working Lunch"},{"$f":"'Working Lunch'!C14","v":"Älplerplatte für 4 Personen"},{"$f":"INDEX('Working Lunch'!A8:A28,MATCH(Anzeige!B41,'Working Lunch'!C8:C28,0))","v":0},{"$f":"'Working Lunch'!E14","v":56.5},0,""]
[{"$f":"'Working Lunch'!$A$2","v":"Working Lunch"},{"$f":"'Working Lunch'!C22","v":"Fleischplatte für 4 Personen"},{"$f":"INDEX('Working Lunch'!A9:A29,MATCH(Anzeige!B42,'Working Lunch'!C9:C29,0))","v":0},{"$f":"'Working Lunch'!E22","v":56.5},0,""]
[{"$f":"'Working Lunch'!$A$2","v":"Working Lunch"},{"$f":"'Working Lunch'!C36","v":"Mini-Pastorello mit Salami"},{"$f":"INDEX('Working Lunch'!$A$36:$A$45,MATCH(Anzeige!B43,'Working Lunch'!$C$36:$C$45,0))","v":0},{"$f":"'Working Lunch'!E36","v":3.5},0,""]
[{"$f":"'Working Lunch'!$A$2","v":"Working Lunch"},{"$f":"'Working Lunch'!C37","v":"Mini-Castellino mit Käse"},{"$f":"INDEX('Working Lunch'!$A$36:$A$45,MATCH(Anzeige!B44,'Working Lunch'!$C$36:$C$45,0))","v":0},{"$f":"'Working Lunch'!E37","v":3.5},0,""]
[{"$f":"'Working Lunch'!$A$2","v":"Working Lunch"},{"$f":"'Working Lunch'!C38","v":"Mini-Semmeli mit Schinken"},{"$f":"INDEX('Working Lunch'!$A$36:$A$45,MATCH(Anzeige!B45,'Working Lunch'!$C$36:$C$45,0))","v":0},{"$f":"'Working Lunch'!E38","v":3.5},0,""]
[{"$f":"'Working Lunch'!$A$2","v":"Working Lunch"},{"$f":"'Working Lunch'!C39","v":"Mini-Nussbrötli mit Brie"},{"$f":"INDEX('Working Lunch'!$A$36:$A$45,MATCH(Anzeige!B46,'Working Lunch'!$C$36:$C$45,0))","v":0},{"$f":"'Working Lunch'!E39","v":3.5},0,""]
[{"$f":"'Working Lunch'!$A$2","v":"Working Lunch"},{"$f":"'Working Lunch'!C40","v":"Mini-Teebrötli mit Ei"},{"$f":"INDEX('Working Lunch'!$A$36:$A$45,MATCH(Anzeige!B47,'Working Lunch'!$C$36:$C$45,0))","v":0},{"$f":"'Working Lunch'!E40","v":3.5},0,""]
[{"$f":"'Working Lunch'!$A$2","v":"Working Lunch"},{"$f":"'Working Lunch'!C41","v":"Mini-Ciabatta mit Tomaten-Mozzarella"},{"$f":"INDEX('Working Lunch'!$A$36:$A$45,MATCH(Anzeige!B48,'Working Lunch'!$C$36:$C$45,0))","v":0},{"$f":"'Working Lunch'!E41","v":3.5},0,""]
[{"$f":"'Working Lunch'!$A$2","v":"Working Lunch"},{"$f":"'Working Lunch'!C42","v":"Mini-Laugenbrötli mit Lachs"},{"$f":"INDEX('Working Lunch'!$A$36:$A$45,MATCH(Anzeige!B49,'Working Lunch'!$C$36:$C$45,0))","v":0},{"$f":"'Working Lunch'!E42","v":4},0,""]
[{"$f":"'Working Lunch'!$A$2","v":"Working Lunch"},{"$f":"'Working Lunch'!C43","v":"Mini-Laugenbrötli mit Rohschinken"},{"$f":"INDEX('Working Lunch'!$A$36:$A$45,MATCH(Anzeige!B50,'Working Lunch'!$C$36:$C$45,0))","v":0},{"$f":"'Working Lunch'!E43","v":4},{"$f":"D50*C50","v":0},""]
[{"$f":"'Working Lunch'!$A$2","v":"Working Lunch"},{"$f":"'Working Lunch'!C44","v":"Mini-Laugenbrötli mit Mostbröckli"},{"$f":"INDEX('Working Lunch'!$A$36:$A$45,MATCH(Anzeige!B51,'Working Lunch'!$C$36:$C$45,0))","v":0},{"$f":"'Working Lunch'!E45","v":4},0,""]
[{"$f":"'Working Lunch'!$A$2","v":"Working Lunch"},{"$f":"'Working Lunch'!C45","v":"Mini-Graham mit Thonfüllung"},{"$f":"INDEX('Working Lunch'!$A$36:$A$45,MATCH(Anzeige!B52,'Working Lunch'!$C$36:$C$45,0))","v":0},{"$f":"'Working Lunch'!E50","v":2.7},0,""]
[{"$f":"'Working Lunch'!$A$2","v":"Working Lunch"},{"$f":"'Working Lunch'!C50","v":"Mini Patisserie, assortiert *"},{"$f":"INDEX('Working Lunch'!$A$50:$A$52,MATCH(Anzeige!B53,'Working Lunch'!$C$50:$C$52,0))","v":0},{"$f":"'Working Lunch'!E50","v":2.7},0,""]
[{"$f":"'Working Lunch'!$A$2","v":"Working Lunch"},{"$f":"'Working Lunch'!C51","v":"Trockenstückli, assortiert"},{"$f":"INDEX('Working Lunch'!$A$50:$A$52,MATCH(Anzeige!B54,'Working Lunch'!$C$50:$C$52,0))","v":0},{"$f":"'Working Lunch'!E51","v":3.5},0,""]
[{"$f":"'Working Lunch'!$A$2","v":"Working Lunch"},{"$f":"'Working Lunch'!C52","v":"Fruchtsalat im Glas"},{"$f":"INDEX('Working Lunch'!$A$50:$A$52,MATCH(Anzeige!B55,'Working Lunch'!$C$50:$C$52,0))","v":0},{"$f":"'Working Lunch'!E52","v":3.5},0,""]
[{"$f":"Apéro!$A$2","v":"Apéro"},{"$f":"Apéro!C7","v":"Käseplatte"},{"$f":"INDEX(Apéro!$A$7:$A$29,MATCH(Anzeige!B56,Apéro!$C$7:$C$29,0))","v":0},{"$f":"Apéro!E7","v":56.5},0,""]
[{"$f":"Apéro!$A$2","v":"Apéro"},{"$f":"Apéro!C15","v":"Älplerplatte"},{"$f":"INDEX(Apéro!$A$7:$A$29,MATCH(Anzeige!B57,Apéro!$C$7:$C$29,0))","v":0},{"$f":"Apéro!E15","v":56.5},0,""]
[{"$f":"Apéro!$A$2","v":"Apéro"},{"$f":"Apéro!C23","v":"Fleischplatte"},{"$f":"INDEX(Apéro!$A$7:$A$29,MATCH(Anzeige!B58,Apéro!$C$7:$C$29,0))","v":0},{"$f":"Apéro!E23","v":56.5},0,""]
[{"$f":"Apéro!$A$2","v":"Apéro"},{"$f":"Apéro!C35","v":"Small Apéro"},{"$f":"INDEX(Apéro!$A$35:$A$86,MATCH(Anzeige!B59,Apéro!$C$35:$C$86,0))","v":0},{"$f":"Apéro!E35","v":8.5},0,""]
[{"$f":"Apéro!$A$2","v":"Apéro"},{"$f":"Apéro!C40","v":"Medium Apéro"},{"$f":"INDEX(Apéro!$A$35:$A$86,MATCH(Anzeige!B60,Apéro!$C$35:$C$86,0))","v":0},{"$f":"Apéro!E40","v":12.8},0,""]
[{"$f":"Apéro!$A$2","v":"Apéro"},{"$f":"Apéro!C50","v":"Italia Apéro"},{"$f":"INDEX(Apéro!$A$35:$A$86,MATCH(Anzeige!B61,Apéro!$C$35:$C$86,0))","v":0},{"$f":"Apéro!E50","v":24},0,""]
[{"$f":"Apéro!$A$2","v":"Apéro"},{"$f":"Apéro!C62","v":"Asia Apéro"},{"$f":"INDEX(Apéro!$A$35:$A$86,MATCH(Anzeige!B62,Apéro!$C$35:$C$86,0))","v":0},{"$f":"Apéro!E62","v":24},0,""]
[{"$f":"Apéro!$A$2","v":"Apéro"},{"$f":"Apéro!C73","v":"Apéro riche "},{"$f":"INDEX(Apéro!$A$35:$A$86,MATCH(Anzeige!B63,Apéro!$C$35:$C$86,0))","v":0},{"$f":"Apéro!E73","v":38.5},0,""]
[{"$f":"Apéro!$A$2","v":"Apéro"},{"$f":"Apéro!C94","v":"Mini-Pastorello mit Salami"},{"$f":"INDEX(Apéro!$A$94:$A$153,MATCH(Anzeige!B64,Apéro!$C$94:$C$153,0))","v":0},{"$f":"Apéro!E94","v":3.5},0,""]
[{"$f":"Apéro!$A$2","v":"Apéro"},{"$f":"Apéro!C95","v":"Mini-Castellino mit Käse"},{"$f":"INDEX(Apéro!$A$94:$A$153,MATCH(Anzeige!B65,Apéro!$C$94:$C$153,0))","v":0},{"$f":"Apéro!E95","v":3.5},0,""]
[{"$f":"Apéro!$A$2","v":"Apéro"},{"$f":"Apéro!C96","v":"Mini-Semmeli mit Schinken"},{"$f":"INDEX(Apéro!$A$94:$A$153,MATCH(Anzeige!B66,Apéro!$C$94:$C$153,0))","v":0},{"$f":"Apéro!E96","v":3.5},0,""]
[{"$f":"Apéro!$A$2","v":"Apéro"},{"$f":"Apéro!C97","v":"Mini-Nussbrötli mit Brie"},{"$f":"INDEX(Apéro!$A$94:$A$153,MATCH(Anzeige!B67,Apéro!$C$94:$C$153,0))","v":0},{"$f":"Apéro!E97","v":3.5},0,{"$f":"IF(C67=0,\"\",\"x\")","v":""}]
[{"$f":"Apéro!$A$2","v":"Apéro"},{"$f":"Apéro!C98","v":"Mini-Teebrötli mit Ei"},{"$f":"INDEX(Apéro!$A$94:$A$153,MATCH(Anzeige!B68,Apéro!$C$94:$C$153,0))","v":0},{"$f":"Apéro!E98","v":3.5},0,""]
[{"$f":"Apéro!$A$2","v":"Apéro"},{"$f":"Apéro!C99","v":"Mini-Ciabatta mit Tomaten-Mozzarella"},{"$f":"INDEX(Apéro!$A$94:$A$153,MATCH(Anzeige!B69,Apéro!$C$94:$C$153,0))","v":0},{"$f":"Apéro!E99","v":3.5},0,""]
[{"$f":"Apéro!$A$2","v":"Apéro"},{"$f":"Apéro!C100","v":"Mini-Laugenbrötli mit Lachs"},{"$f":"INDEX(Apéro!$A$94:$A$153,MATCH(Anzeige!B70,Apéro!$C$94:$C$153,0))","v":0},{"$f":"Apéro!E100","v":4},0,""]
[{"$f":"Apéro!$A$2","v":"Apéro"},{"$f":"Apéro!C101","v":"Mini-Laugenbrötli mit Rohschinken"},{"$f":"INDEX(Apéro!$A$94:$A$153,MATCH(Anzeige!B71,Apéro!$C$94:$C$153,0))","v":0},{"$f":"Apéro!E101","v":4},0,""]
[{"$f":"Apéro!$A$2","v":"Apéro"},{"$f":"Apéro!C102","v":"Mini-Laugenbrötli mit Mostbröckli"},{"$f":"INDEX(Apéro!$A$94:$A$153,MATCH(Anzeige!B72,Apéro!$C$94:$C$153,0))","v":0},{"$f":"Apéro!E102","v":4},0,""]
[{"$f":"Apéro!$A$2","v":"Apéro"},{"$f":"Apéro!C103","v":"Mini-Graham mit Thonfüllung"},{"$f":"INDEX(Apéro!$A$94:$A$153,MATCH(Anzeige!B73,Apéro!$C$94:$C$153,0))","v":0},{"$f":"Apéro!E103","v":4},0,""]
[{"$f":"Apéro!$A$2","v":"Apéro"},{"$f":"Apéro!C108","v":"Bruschetta mit frischen Tomaten, Basilikum und Olivenöl"},{"$f":"INDEX(Apéro!$A$94:$A$153,MATCH(Anzeige!B74,Apéro!$C$94:$C$153,0))","v":0},{"$f":"Apéro!E108","v":3},0,""]
[{"$f":"Apéro!$A$2","v":"Apéro"},{"$f":"Apéro!C109","v":"Tomaten-Mozzarella-Spiess"},{"$f":"INDEX(Apéro!$A$94:$A$153,MATCH(Anzeige!B75,Apéro!$C$94:$C$153,0))","v":0},{"$f":"Apéro!E109","v":3},0,""]
[{"$f":"Apéro!$A$2","v":"Apéro"},{"$f":"Apéro!C110","v":"Marinierte Oliven und Parmesanmöckli"},{"$f":"INDEX(Apéro!$A$94:$A$153,MATCH(Anzeige!B76,Apéro!$C$94:$C$153,0))","v":0},{"$f":"Apéro!E110","v":6},0,""]
[{"$f":"Apéro!$A$2","v":"Apéro"},{"$f":"Apéro!C111","v":"Gemüsesticks mit 2 Dips"},{"$f":"INDEX(Apéro!$A$94:$A$153,MATCH(Anzeige!B77,Apéro!$C$94:$C$153,0))","v":0},{"$f":"Apéro!E111","v":3},0,""]
[{"$f":"Apéro!$A$2","v":"Apéro"},{"$f":"Apéro!C116","v":"Crevette auf Mango-Chili-Salat"},{"$f":"INDEX(Apéro!$A$94:$A$153,MATCH(Anzeige!B78,Apéro!$C$94:$C$153,0))","v":0},{"$f":"Apéro!E116","v":3.5},0,""]
[{"$f":"Apéro!$A$2","v":"Apéro"},{"$f":"Apéro!C117","v":"Glasnudelsalat mit Koreander"},{"$f":"INDEX(Apéro!$A$94:$A$153,MATCH(Anzeige!B79,Apéro!$C$94:$C$153,0))","v":0},{"$f":"Apéro!E117","v":3.5},0,""]
[{"$f":"Apéro!$A$2","v":"Apéro"},{"$f":"Apéro!C118","v":"Rindstatar auf Toast"},{"$f":"INDEX(Apéro!$A$94:$A$153,MATCH(Anzeige!B80,Apéro!$C$94:$C$153,0))","v":0},{"$f":"Apéro!E118","v":4},0,""]
[{"$f":"Apéro!$A$2","v":"Apéro"},{"$f":"Apéro!C119","v":"Lachstatar mit Dill-Senfsauce"},{"$f":"INDEX(Apéro!$A$94:$A$153,MATCH(Anzeige!B81,Apéro!$C$94:$C$153,0))","v":0},{"$f":"Apéro!E119","v":4},0,""]
[{"$f":"Apéro!$A$2","v":"Apéro"},{"$f":"Apéro!C120","v":"Roastbeef-Roulade mit Frischkäse"},{"$f":"INDEX(Apéro!$A$94:$A$153,MATCH(Anzeige!B82,Apéro!$C$94:$C$153,0))","v":0},{"$f":"Apéro!E120","v":3.5},0,""]
[{"$f":"Apéro!$A$2","v":"Apéro"},{"$f":"Apéro!C121","v":"Zwetschgen im Speckmantel"},{"$f":"INDEX(Apéro!$A$94:$A$153,MATCH(Anzeige!B83,Apéro!$C$94:$C$153,0))","v":0},{"$f":"Apéro!E121","v":2.5},0,""]
[{"$f":"Apéro!$A$2","v":"Apéro"},{"$f":"Apéro!C126","v":"Party Chäschüechli"},{"$f":"INDEX(Apéro!$A$94:$A$153,MATCH(Anzeige!B84,Apéro!$C$94:$C$153,0))","v":0},{"$f":"Apéro!E126","v":2.5},0,""]
[{"$f":"Apéro!$A$2","v":"Apéro"},{"$f":"Apéro!C127","v":"Party Minipizza "},{"$f":"INDEX(Apéro!$A$94:$A$153,MATCH(Anzeige!B85,Apéro!$C$94:$C$153,0))","v":0},{"$f":"Apéro!E127","v":2.5},0,""]
[{"$f":"Apéro!$A$2","v":"Apéro"},{"$f":"Apéro!C128","v":"Party-Frühlingsrolle"},{"$f":"INDEX(Apéro!$A$94:$A$153,MATCH(Anzeige!B86,Apéro!$C$94:$C$153,0))","v":0},{"$f":"Apéro!E128","v":2.5},0,""]
[{"$f":"Apéro!$A$2","v":"Apéro"},{"$f":"Apéro!C129","v":"Gemüse-Samosas mit Curry-Joghurt-Dip"},{"$f":"INDEX(Apéro!$A$94:$A$153,MATCH(Anzeige!B87,Apéro!$C$94:$C$153,0))","v":0},{"$f":"Apéro!E129","v":2.5},0,""]
[{"$f":"Apéro!$A$2","v":"Apéro"},{"$f":"Apéro!C134","v":"Party Schinkengipfeli"},{"$f":"INDEX(Apéro!$A$94:$A$153,MATCH(Anzeige!B88,Apéro!$C$94:$C$153,0))","v":0},{"$f":"Apéro!E134","v":2.5},0,""]
[{"$f":"Apéro!$A$2","v":"Apéro"},{"$f":"Apéro!C135","v":"Mini Frühlingsrollen"},{"$f":"INDEX(Apéro!$A$94:$A$153,MATCH(Anzeige!B89,Apéro!$C$94:$C$153,0))","v":0},{"$f":"Apéro!E135","v":2.5},0,""]
[{"$f":"Apéro!$A$2","v":"Apéro"},{"$f":"Apéro!C136","v":"Tandoori-Pouletspiessli mit Erdnuss-Kokos-Sauce"},{"$f":"INDEX(Apéro!$A$94:$A$153,MATCH(Anzeige!B90,Apéro!$C$94:$C$153,0))","v":0},{"$f":"Apéro!E136","v":3.5},0,""]
[{"$f":"Apéro!$A$2","v":"Apéro"},{"$f":"Apéro!C137","v":"Rinds Meat Balls mit BBQ-Dip"},{"$f":"INDEX(Apéro!$A$94:$A$153,MATCH(Anzeige!B91,Apéro!$C$94:$C$153,0))","v":0},{"$f":"Apéro!E137","v":3.5},0,""]
[{"$f":"Apéro!$A$2","v":"Apéro"},{"$f":"Apéro!C142","v":"Mini Patisserie, assortiert"},{"$f":"INDEX(Apéro!$A$94:$A$153,MATCH(Anzeige!B92,Apéro!$C$94:$C$153,0))","v":0},{"$f":"Apéro!E138","v":0},0,""]
[{"$f":"Apéro!$A$2","v":"Apéro"},{"$f":"Apéro!C143","v":"Trockenstückli, assortiert"},{"$f":"INDEX(Apéro!$A$94:$A$153,MATCH(Anzeige!B93,Apéro!$C$94:$C$153,0))","v":0},{"$f":"Apéro!E139","v":0},0,""]
[{"$f":"Apéro!$A$2","v":"Apéro"},{"$f":"Apéro!C144","v":"Fruchtsalat im Glas"},{"$f":"INDEX(Apéro!$A$94:$A$153,MATCH(Anzeige!B94,Apéro!$C$94:$C$153,0))","v":0},{"$f":"Apéro!E140","v":0},0,""]
[{"$f":"Apéro!$A$2","v":"Apéro"},{"$f":"Apéro!C148","v":"Canapé Spargel"},{"$f":"INDEX(Apéro!$A$148:$A$153,MATCH(Anzeige!B95,Apéro!$C$148:$C$153,0))","v":0},{"$f":"Apéro!E148","v":6.5},0,""]
[{"$f":"Apéro!$A$2","v":"Apéro"},{"$f":"Apéro!C149","v":"Canapé Eier"},{"$f":"INDEX(Apéro!$A$148:$A$153,MATCH(Anzeige!B96,Apéro!$C$148:$C$153,0))","v":0},{"$f":"Apéro!E149","v":6.5},0,""]
[{"$f":"Apéro!$A$2","v":"Apéro"},{"$f":"Apéro!C150","v":"Canapé Schinken"},{"$f":"INDEX(Apéro!$A$148:$A$153,MATCH(Anzeige!B97,Apéro!$C$148:$C$153,0))","v":0},{"$f":"Apéro!E150","v":6.5},0,""]
[{"$f":"Apéro!$A$2","v":"Apéro"},{"$f":"Apéro!C151","v":"Canapé Salami"},{"$f":"INDEX(Apéro!$A$148:$A$153,MATCH(Anzeige!B98,Apéro!$C$148:$C$153,0))","v":0},{"$f":"Apéro!E151","v":6.5},0,""]
[{"$f":"Apéro!$A$2","v":"Apéro"},{"$f":"Apéro!C152","v":"Canapé Bündnerfleisch"},{"$f":"INDEX(Apéro!$A$148:$A$153,MATCH(Anzeige!B99,Apéro!$C$148:$C$153,0))","v":0},{"$f":"Apéro!E152","v":6.8},0,""]
[{"$f":"Apéro!$A$2","v":"Apéro"},{"$f":"Apéro!C153","v":"Canapé Lachs"},{"$f":"INDEX(Apéro!$A$148:$A$153,MATCH(Anzeige!B100,Apéro!$C$148:$C$153,0))","v":0},{"$f":"Apéro!E153","v":6.8},0,""]
[{"$f":"Getränke!$A$2","v":"Getränke"},{"$f":"Getränke!C8","v":"Nespresso Espresso"},{"$f":"INDEX(Getränke!$A$8:$A$31,MATCH(Anzeige!B101,Getränke!$C$8:$C$31,0))","v":0},{"$f":"Getränke!E8","v":2},0,""]
[{"$f":"Getränke!$A$2","v":"Getränke"},{"$f":"Getränke!C9","v":"Nespresso Kaffee Crème"},{"$f":"INDEX(Getränke!$A$8:$A$31,MATCH(Anzeige!B102,Getränke!$C$8:$C$31,0))","v":0},{"$f":"Getränke!E9","v":2},{"$f":"D102*C102","v":0},""]
[{"$f":"Getränke!$A$2","v":"Getränke"},{"$f":"Getränke!C10","v":"Tee assortiert"},{"$f":"INDEX(Getränke!$A$8:$A$31,MATCH(Anzeige!B103,Getränke!$C$8:$C$31,0))","v":0},{"$f":"Getränke!E10","v":2},0,""]
[{"$f":"Getränke!$A$2","v":"Getränke"},{"$f":"Getränke!C14","v":"Valser mit Kohlensäure"},{"$f":"INDEX(Getränke!$A$8:$A$31,MATCH(Anzeige!B104,Getränke!$C$8:$C$31,0))","v":0},{"$f":"Getränke!E14","v":2.8},0,""]
[{"$f":"Getränke!$A$2","v":"Getränke"},{"$f":"Getränke!C15","v":"Valser ohne Kohlensäure"},{"$f":"INDEX(Getränke!$A$8:$A$31,MATCH(Anzeige!B105,Getränke!$C$8:$C$31,0))","v":0},{"$f":"Getränke!E15","v":2.8},0,""]
[{"$f":"Getränke!$A$2","v":"Getränke"},{"$f":"Getränke!C16","v":"Coca-Cola"},{"$f":"INDEX(Getränke!$A$8:$A$31,MATCH(Anzeige!B106,Getränke!$C$8:$C$31,0))","v":0},{"$f":"Getränke!E16","v":2.8},0,""]
[{"$f":"Getränke!$A$2","v":"Getränke"},{"$f":"Getränke!C17","v":"Coca-Cola Zero"},{"$f":"INDEX(Getränke!$A$8:$A$31,MATCH(Anzeige!B107,Getränke!$C$8:$C$31,0))","v":0},{"$f":"Getränke!E17","v":2.8},0,""]
[{"$f":"Getränke!$A$2","v":"Getränke"},{"$f":"Getränke!C18","v":"Nestea Lemon"},{"$f":"INDEX(Getränke!$A$8:$A$31,MATCH(Anzeige!B108,Getränke!$C$8:$C$31,0))","v":0},{"$f":"Getränke!E18","v":2.8},0,""]
[{"$f":"Getränke!$A$2","v":"Getränke"},{"$f":"Getränke!C19","v":"Rivella Rot"},{"$f":"INDEX(Getränke!$A$8:$A$31,MATCH(Anzeige!B109,Getränke!$C$8:$C$31,0))","v":0},{"$f":"Getränke!E19","v":2.8},0,""]
[{"$f":"Getränke!$A$2","v":"Getränke"},{"$f":"Getränke!C20","v":"Rivella Blau"},{"$f":"INDEX(Getränke!$A$8:$A$31,MATCH(Anzeige!B110,Getränke!$C$8:$C$31,0))","v":0},{"$f":"Getränke!E20","v":2.8},0,""]
[{"$f":"Getränke!$A$2","v":"Getränke"},{"$f":"Getränke!C21","v":"Red Bull"},{"$f":"INDEX(Getränke!$A$8:$A$31,MATCH(Anzeige!B111,Getränke!$C$8:$C$31,0))","v":0},{"$f":"Getränke!E21","v":3.5},0,""]
[{"$f":"Getränke!$A$2","v":"Getränke"},{"$f":"Getränke!C25","v":"Valser mit Kohlensäure"},{"$f":"INDEX(Getränke!$A$8:$A$31,MATCH(Anzeige!B112,Getränke!$C$8:$C$31,0))","v":0},{"$f":"Getränke!E25","v":4.5},0,""]
[{"$f":"Getränke!$A$2","v":"Getränke"},{"$f":"Getränke!C26","v":"Valser ohne Kohlensäure"},{"$f":"INDEX(Getränke!$A$8:$A$31,MATCH(Anzeige!B113,Getränke!$C$8:$C$31,0))","v":0},{"$f":"Getränke!E26","v":4.5},0,""]
[{"$f":"Getränke!$A$2","v":"Getränke"},{"$f":"Getränke!C30","v":"Orangensaft, 1L"},{"$f":"INDEX(Getränke!$A$8:$A$31,MATCH(Anzeige!B114,Getränke!$C$8:$C$31,0))","v":0},{"$f":"Getränke!E30","v":6.5},0,""]
[{"$f":"Getränke!$A$2","v":"Getränke"},{"$f":"Getränke!C31","v":"Orangensaft frisch gepresst, 1 L"},{"$f":"INDEX(Getränke!$A$8:$A$31,MATCH(Anzeige!B115,Getränke!$C$8:$C$31,0))","v":0},{"$f":"Getränke!E31","v":15},0,""]
[{"$f":"Getränke!$A$2","v":"Getränke"},{"$f":"Getränke!C39","v":"S`Bier"},{"$f":"INDEX(Getränke!$A$37:$A$40,MATCH(Anzeige!B116,Getränke!$C$37:$C$40,0))","v":0},{"$f":"Getränke!E39","v":4.5},0,""]
[{"$f":"Getränke!$A$2","v":"Getränke"},{"$f":"Getränke!C40","v":"Feldschlösschen mit und ohne Alkohol"},{"$f":"INDEX(Getränke!$A$37:$A$40,MATCH(Anzeige!B117,Getränke!$C$37:$C$40,0))","v":0},{"$f":"Getränke!E40","v":3.5},0,""]
[{"$f":"'Miete Geschirr'!$A$2","v":"Miete Geschirr"},{"$f":"'Miete Geschirr'!C13","v":"Teller, 28cm"},{"$f":"INDEX('Miete Geschirr'!$A$13:$A$53,MATCH(Anzeige!B118,'Miete Geschirr'!$C$13:$C$53,0))","v":0},{"$f":"'Miete Geschirr'!E13","v":2},0,""]
[{"$f":"'Miete Geschirr'!$A$2","v":"Miete Geschirr"},{"$f":"'Miete Geschirr'!C14","v":"Teller, 24cm"},{"$f":"INDEX('Miete Geschirr'!$A$13:$A$53,MATCH(Anzeige!B119,'Miete Geschirr'!$C$13:$C$53,0))","v":0},{"$f":"'Miete Geschirr'!E14","v":2},0,""]
[{"$f":"'Miete Geschirr'!$A$2","v":"Miete Geschirr"},{"$f":"'Miete Geschirr'!C15","v":"Teller, 18cm"},{"$f":"INDEX('Miete Geschirr'!$A$13:$A$53,MATCH(Anzeige!B120,'Miete Geschirr'!$C$13:$C$53,0))","v":0},{"$f":"'Miete Geschirr'!E15","v":1.5},0,""]
[{"$f":"'Miete Geschirr'!$A$2","v":"Miete Geschirr"},{"$f":"'Miete Geschirr'!C16","v":"Salat-Teller klein"},{"$f":"INDEX('Miete Geschirr'!$A$13:$A$53,MATCH(Anzeige!B121,'Miete Geschirr'!$C$13:$C$53,0))","v":0},{"$f":"'Miete Geschirr'!E16","v":1},0,""]
[{"$f":"'Miete Geschirr'!$A$2","v":"Miete Geschirr"},{"$f":"'Miete Geschirr'!C17","v":"Suppenschale"},{"$f":"INDEX('Miete Geschirr'!$A$13:$A$53,MATCH(Anzeige!B122,'Miete Geschirr'!$C$13:$C$53,0))","v":0},{"$f":"'Miete Geschirr'!E17","v":1},0,""]
[{"$f":"'Miete Geschirr'!$A$2","v":"Miete Geschirr"},{"$f":"'Miete Geschirr'!C18","v":"Kaffeetasse mit Unterteller"},{"$f":"INDEX('Miete Geschirr'!$A$13:$A$53,MATCH(Anzeige!B123,'Miete Geschirr'!$C$13:$C$53,0))","v":0},{"$f":"'Miete Geschirr'!E18","v":2},0,""]
[{"$f":"'Miete Geschirr'!$A$2","v":"Miete Geschirr"},{"$f":"'Miete Geschirr'!C19","v":"Espressotasse mit Unterteller"},{"$f":"INDEX('Miete Geschirr'!$A$13:$A$53,MATCH(Anzeige!B124,'Miete Geschirr'!$C$13:$C$53,0))","v":0},{"$f":"'Miete Geschirr'!E19","v":2},0,""]
[{"$f":"'Miete Geschirr'!$A$2","v":"Miete Geschirr"},{"$f":"'Miete Geschirr'!C23","v":"Messer"},{"$f":"INDEX('Miete Geschirr'!$A$13:$A$53,MATCH(Anzeige!B125,'Miete Geschirr'!$C$13:$C$53,0))","v":0},{"$f":"'Miete Geschirr'!E23","v":1},0,""]
[{"$f":"'Miete Geschirr'!$A$2","v":"Miete Geschirr"},{"$f":"'Miete Geschirr'!C24","v":"Gabel"},{"$f":"INDEX('Miete Geschirr'!$A$13:$A$53,MATCH(Anzeige!B126,'Miete Geschirr'!$C$13:$C$53,0))","v":0},{"$f":"'Miete Geschirr'!E24","v":1},0,""]
[{"$f":"'Miete Geschirr'!$A$2","v":"Miete Geschirr"},{"$f":"'Miete Geschirr'!C25","v":"Suppenlöffel"},{"$f":"INDEX('Miete Geschirr'!$A$13:$A$53,MATCH(Anzeige!B127,'Miete Geschirr'!$C$13:$C$53,0))","v":0},{"$f":"'Miete Geschirr'!E25","v":1},0,""]
[{"$f":"'Miete Geschirr'!$A$2","v":"Miete Geschirr"},{"$f":"'Miete Geschirr'!C26","v":"Kaffeelöffel"},{"$f":"INDEX('Miete Geschirr'!$A$13:$A$53,MATCH(Anzeige!B128,'Miete Geschirr'!$C$13:$C$53,0))","v":0},{"$f":"'Miete Geschirr'!E26","v":1},0,""]
[{"$f":"'Miete Geschirr'!$A$2","v":"Miete Geschirr"},{"$f":"'Miete Geschirr'!C27","v":"Schöpfkelle"},{"$f":"INDEX('Miete Geschirr'!$A$13:$A$53,MATCH(Anzeige!B129,'Miete Geschirr'!$C$13:$C$53,0))","v":0},{"$f":"'Miete Geschirr'!E27","v":2},0,""]
[{"$f":"'Miete Geschirr'!$A$2","v":"Miete Geschirr"},{"$f":"'Miete Geschirr'!C28","v":"Zange"},{"$f":"INDEX('Miete Geschirr'!$A$13:$A$53,MATCH(Anzeige!B130,'Miete Geschirr'!$C$13:$C$53,0))","v":0},{"$f":"'Miete Geschirr'!E28","v":2},0,""]
[{"$f":"'Miete Geschirr'!$A$2","v":"Miete Geschirr"},{"$f":"'Miete Geschirr'!C32","v":"Champagnerglas"},{"$f":"INDEX('Miete Geschirr'!$A$13:$A$53,MATCH(Anzeige!B131,'Miete Geschirr'!$C$13:$C$53,0))","v":0},{"$f":"'Miete Geschirr'!E32","v":1},0,{"$f":"IF(C131=0,\"\",\"x\")","v":""}]
[{"$f":"'Miete Geschirr'!$A$2","v":"Miete Geschirr"},{"$f":"'Miete Geschirr'!C33","v":"Rotweinglas"},{"$f":"INDEX('Miete Geschirr'!$A$13:$A$53,MATCH(Anzeige!B132,'Miete Geschirr'!$C$13:$C$53,0))","v":0},{"$f":"'Miete Geschirr'!E33","v":1},0,""]
[{"$f":"'Miete Geschirr'!$A$2","v":"Miete Geschirr"},{"$f":"'Miete Geschirr'!C34","v":"Weissweinglas"},{"$f":"INDEX('Miete Geschirr'!$A$13:$A$53,MATCH(Anzeige!B133,'Miete Geschirr'!$C$13:$C$53,0))","v":0},{"$f":"'Miete Geschirr'!E34","v":1},0,""]
[{"$f":"'Miete Geschirr'!$A$2","v":"Miete Geschirr"},{"$f":"'Miete Geschirr'!C35","v":"Wasserglas, 2.5dl"},{"$f":"INDEX('Miete Geschirr'!$A$13:$A$53,MATCH(Anzeige!B134,'Miete Geschirr'!$C$13:$C$53,0))","v":0},{"$f":"'Miete Geschirr'!E35","v":1},0,""]
[{"$f":"'Miete Geschirr'!$A$2","v":"Miete Geschirr"},{"$f":"'Miete Geschirr'!C39","v":"Korkenzieher"},{"$f":"INDEX('Miete Geschirr'!$A$13:$A$53,MATCH(Anzeige!B135,'Miete Geschirr'!$C$13:$C$53,0))","v":0},{"$f":"'Miete Geschirr'!E39","v":15},0,""]
[{"$f":"'Miete Geschirr'!$A$2","v":"Miete Geschirr"},{"$f":"'Miete Geschirr'!C40","v":"Grosses Messer"},{"$f":"INDEX('Miete Geschirr'!$A$13:$A$53,MATCH(Anzeige!B136,'Miete Geschirr'!$C$13:$C$53,0))","v":0},{"$f":"'Miete Geschirr'!E40","v":25},0,""]
[{"$f":"'Miete Geschirr'!$A$2","v":"Miete Geschirr"},{"$f":"'Miete Geschirr'!C41","v":"Schale"},{"$f":"INDEX('Miete Geschirr'!$A$13:$A$53,MATCH(Anzeige!B137,'Miete Geschirr'!$C$13:$C$53,0))","v":0},{"$f":"'Miete Geschirr'!E41","v":12},0,""]
[{"$f":"'Miete Geschirr'!$A$2","v":"Miete Geschirr"},{"$f":"'Miete Geschirr'!C42","v":"Platte"},{"$f":"INDEX('Miete Geschirr'!$A$13:$A$53,MATCH(Anzeige!B138,'Miete Geschirr'!$C$13:$C$53,0))","v":0},{"$f":"'Miete Geschirr'!E42","v":14.5},0,""]
[{"$f":"'Miete Geschirr'!$A$2","v":"Miete Geschirr"},{"$f":"'Miete Geschirr'!C43","v":"Korb"},{"$f":"INDEX('Miete Geschirr'!$A$13:$A$53,MATCH(Anzeige!B139,'Miete Geschirr'!$C$13:$C$53,0))","v":0},{"$f":"'Miete Geschirr'!E43","v":8},0,""]
[{"$f":"'Miete Geschirr'!$A$2","v":"Miete Geschirr"},{"$f":"'Miete Geschirr'!C44","v":"Thermoskanne"},{"$f":"INDEX('Miete Geschirr'!$A$13:$A$53,MATCH(Anzeige!B140,'Miete Geschirr'!$C$13:$C$53,0))","v":0},{"$f":"'Miete Geschirr'!E44","v":15},0,""]
[{"$f":"'Miete Geschirr'!$A$2","v":"Miete Geschirr"},{"$f":"'Miete Geschirr'!C45","v":"Tischtuch Papier"},{"$f":"INDEX('Miete Geschirr'!$A$13:$A$53,MATCH(Anzeige!B141,'Miete Geschirr'!$C$13:$C$53,0))","v":0},{"$f":"'Miete Geschirr'!E45","v":3.5},0,""]
[{"$f":"'Miete Geschirr'!$A$2","v":"Miete Geschirr"},{"$f":"'Miete Geschirr'!C46","v":"Tischtuch Stoff"},{"$f":"INDEX('Miete Geschirr'!$A$13:$A$53,MATCH(Anzeige!B142,'Miete Geschirr'!$C$13:$C$53,0))","v":0},{"$f":"'Miete Geschirr'!E46","v":5},0,""]
[{"$f":"'Miete Geschirr'!$A$2","v":"Miete Geschirr"},{"$f":"'Miete Geschirr'!C51","v":"Besteckset"},{"$f":"INDEX('Miete Geschirr'!$A$13:$A$53,MATCH(Anzeige!B143,'Miete Geschirr'!$C$13:$C$53,0))","v":0},{"$f":"'Miete Geschirr'!E51","v":1.5},0,""]
[{"$f":"'Miete Geschirr'!$A$2","v":"Miete Geschirr"},{"$f":"'Miete Geschirr'!C52","v":"Pappteller"},{"$f":"INDEX('Miete Geschirr'!$A$13:$A$53,MATCH(Anzeige!B144,'Miete Geschirr'!$C$13:$C$53,0))","v":0},{"$f":"'Miete Geschirr'!E52","v":1.2},0,""]
[{"$f":"'Miete Geschirr'!$A$2","v":"Miete Geschirr"},{"$f":"'Miete Geschirr'!C53","v":"Becher"},{"$f":"INDEX('Miete Geschirr'!$A$13:$A$53,MATCH(Anzeige!B145,'Miete Geschirr'!$C$13:$C$53,0))","v":0},{"$f":"'Miete Geschirr'!E53","v":0.9},0,""]
[null,null,null,null,null,{"$f":"IF(ISBLANK(F2:F145),x,\"\")","v":""}]

{"sheet":"Tabelle1","index":10,"n_rows":0,"n_cols":0,"rows_kept":0,"cut":false,"hidden":false,"merged":[]}